bitfinex/quotes_SOLUSD_20240726
["timestamp","ask_amount","ask_price","bid_price","bid_amount"]
[1721974396156,5.6287,177.66,177.6,15.5324]
[1721974397360,1.40754356,177.65,177.6,15.5324]
[1721974397545,5.63,177.62,177.6,15.5324]
[1721974399652,7.03802423,177.61,177.6,15.5324]
[1721974399972,5.6303,177.61,177.6,15.5324]
[1721974404268,16.91,177.65,177.6,15.5324]
[1721974404564,20.0,177.64,177.6,15.5324]
[1721974404750,5.6294,177.64,177.6,15.5324]
[1721974407075,1.40759258,177.64,177.6,15.5324]
[1721974407275,5.6302,177.62,177.6,15.5324]
[1721974407578,5.6303,177.61,177.6,15.5324]
[1721974407758,5.6303,177.61,177.57,6.6327]
[1721974407759,1.40759258,177.64,177.57,6.6327]
[1721974408260,5.6306,177.61,177.57,6.6327]
[1721974408458,7.03853914,177.61,177.57,6.6327]
[1721974408658,5.6306,177.61,177.57,6.6327]
[1721974409259,65.0,177.64,177.57,6.6327]
[1721974409458,5.6296,177.63,177.57,6.6327]
[1721974410576,5.63,177.62,177.57,6.6327]
[1721974411466,5.6304,177.61,177.57,6.6327]
[1721974413782,25.6293,177.64,177.57,6.6327]
[1721974413964,5.6298,177.63,177.57,6.6327]
[1721974415093,5.6292,177.65,177.57,6.6327]
[1721974415261,5.88847314,177.66,177.58,16.146]
[1721974415578,7.03485104,177.7,177.58,17.27188083]
[1721974415881,5.6278,177.69,177.59,81.146]
[1721974419493,5.6281,177.68,177.59,81.146]
[1721974421089,5.6285,177.67,177.59,36.146]
[1721974421276,5.6287,177.66,177.59,36.146]
[1721974421476,5.6287,177.66,177.59,16.146]
[1721974421684,5.6293,177.64,177.59,16.146]
[1721974421877,7.03688411,177.64,177.59,16.146]
[1721974422189,1.4076223,177.63,177.59,16.146]
[1721974423064,7.0372223,177.63,177.59,16.146]
[1721974423264,14.0708,177.68,177.59,16.146]
[1721974423499,5.6296,177.64,177.59,16.146]
[1721974425586,5.629,177.65,177.59,16.146]
[1721974425994,7.03705587,177.64,177.59,16.146]
[1721974427181,5.6301,177.62,177.59,16.146]
[1721974427385,1.40765415,177.66,177.59,16.146]
[1721974427599,5.6297,177.63,177.59,16.146]
[1721974432674,5.6287,177.66,177.59,16.146]
[1721974433003,1.40751561,177.72,177.59,16.146]
[1721974433800,5.6282,177.68,177.59,16.146]
[1721974435295,5.6284,177.67,177.59,16.146]
[1721974436007,5.6281,177.68,177.6,21.7577]
[1721974436699,7.03451561,177.72,177.6,21.7577]
[1721974436902,20.0,177.71,177.61,1.12577837]
[1721974437201,20.0,177.71,177.62,15.9317]
[1721974437499,1.40712367,177.73,177.62,15.9317]
[1721974437702,1.40690413,177.74,177.64,22.185]
[1721974438002,15.47009454,177.77,177.64,22.185]
[1721974438312,5.6262,177.74,177.64,22.185]
[1721974438508,5.6258,177.76,177.66,15.4621]
[1721974438883,5.6258,177.76,177.67,6.2663]
[1721974439087,5.6258,177.76,177.67,22.7735]
[1721974439291,5.6259,177.75,177.67,22.7735]
[1721974440006,5.6262,177.74,177.67,22.7735]
[1721974442499,15.46918797,177.78,177.67,22.7735]
[1721974442693,65.0,177.77,177.67,22.7735]
[1721974442889,5.6265,177.73,177.67,22.7735]
[1721974443910,5.6261,177.75,177.67,22.7735]
[1721974445106,5.6265,177.73,177.67,22.7735]
[1721974445303,20.0,177.77,177.67,22.7735]
[1721974445509,5.6262,177.74,177.67,22.7735]
[1721974446404,20.0,177.77,177.67,22.7735]
[1721974446623,1.40676971,177.76,177.67,22.7735]
[1721974446792,5.6262,177.74,177.67,22.7735]
[1721974447504,7.03256971,177.76,177.67,22.7735]
[1721974447702,5.6261,177.75,177.67,22.7735]
[1721974448514,5.6263,177.74,177.67,22.7735]
[1721974448809,5.6265,177.73,177.67,22.7735]
[1721974449411,5.6262,177.74,177.67,22.7735]
[1721974450585,7.03300208,177.74,177.67,22.7735]
[1721974450789,5.6262,177.74,177.67,22.7735]
[1721974450990,7.03309636,177.74,177.67,22.7735]
[1721974451498,5.6262,177.74,177.67,22.7735]
[1721974456317,5.6234,177.83,177.7,15.0297]
[1721974456522,256.6,177.84,177.72,15.0297]
[1721974456819,5.6239,177.81,177.72,15.0297]
[1721974456999,5.6235,177.83,177.73,6.0139]
[1721974457315,5.88134778,177.86,177.74,61.1545603]
[1721974457617,5.6224,177.86,177.75,20.0]
[1721974457794,5.6224,177.86,177.76,15.0297]
[1721974458222,1.40599893,177.85,177.76,15.0297]
[1721974458427,5.6235,177.83,177.76,15.0297]
[1721974459101,7.02957833,177.83,177.76,15.0297]
[1721974459298,5.6235,177.83,177.76,15.0297]
[1721974459502,5.623,177.84,177.76,15.0297]
[1721974460599,7.0295568,177.83,177.76,15.0297]
[1721974460801,5.6249,177.79,177.76,15.0297]
[1721974461008,7.03059623,177.81,177.76,15.0297]
[1721974461210,5.6242,177.81,177.76,15.0297]
[1721974461422,45.0,177.82,177.76,15.0297]
[1721974461423,5.6236,177.82,177.76,15.0297]
[1721974461614,20.0,177.81,177.76,15.0297]
[1721974462131,25.624,177.81,177.76,15.0297]
[1721974462497,5.6235,177.83,177.76,15.0297]
[1721974462698,20.0,177.82,177.76,15.0297]
[1721974463009,5.6243,177.8,177.76,15.0297]
[1721974463814,25.6239,177.82,177.76,15.0297]
[1721974463993,5.6239,177.81,177.76,15.0297]
[1721974464422,5.6243,177.8,177.76,15.0297]
[1721974464601,25.6239,177.82,177.76,15.0297]
[1721974464997,5.6241,177.81,177.76,15.0297]
[1721974466314,1.40631035,177.84,177.76,15.0297]
[1721974466526,5.6236,177.83,177.76,15.0297]
[1721974468118,5.88113051,177.82,177.76,15.0297]
[1721974470811,7.28723556,177.82,177.76,15.0297]
[1721974471527,12.91113556,177.82,177.76,15.0297]
[1721974472505,5.6239,177.81,177.76,15.0297]
[1721974473128,11.50483051,177.82,177.76,15.0297]
[1721974473922,5.88113051,177.82,177.76,15.0297]
[1721974474611,7.03051855,177.81,177.76,15.0297]
[1721974475117,5.88113051,177.82,177.76,15.0297]
[1721974475507,1.40623535,177.84,177.76,15.0297]
[1721974475846,7.02923535,177.84,177.77,6.1983]
[1721974476029,5.623,177.84,177.77,6.1983]
[1721974476218,1.40606329,177.83,177.77,6.1983]
[1721974476421,20.0,177.88,177.77,6.1983]
[1721974476622,14.056,177.86,177.77,6.1983]
[1721974476928,66.406271,177.85,177.77,6.1983]
[1721974477126,5.624,177.81,177.77,6.1983]
[1721974477327,1.40627123,177.8,177.77,6.1983]
[1721974478707,1.40627123,177.8,177.76,15.0297]
[1721974479426,50.6245,177.8,177.76,15.0297]
[1721974480026,7.28916844,177.83,177.76,15.0297]
[1721974480330,5.6241,177.81,177.76,15.0297]
[1721974480532,1.40634555,177.8,177.76,15.0297]
[1721974480737,1.40634931,177.79,177.76,15.0297]
[1721974481538,7.03044524,177.81,177.76,15.0297]
[1721974483031,5.6243,177.8,177.76,15.0297]
[1721974483406,1.40634847,177.79,177.76,15.0297]
[1721974484429,20.0,177.82,177.76,15.0297]
[1721974484740,12.91235011,177.83,177.76,15.0297]
[1721974485327,5.88271642,177.83,177.76,15.0297]
[1721974485527,5.6239,177.81,177.76,15.0297]
[1721974485732,5.6236,177.82,177.76,15.0297]
[1721974485938,5.624,177.81,177.76,15.0297]
[1721974487135,5.6236,177.82,177.76,15.0297]
[1721974488415,7.0298514,177.82,177.76,15.0297]
[1721974488616,5.6236,177.82,177.76,15.0297]
[1721974488840,5.88271642,177.83,177.76,15.0297]
[1721974489533,5.6236,177.82,177.76,15.0297]
[1721974490427,5.6239,177.81,177.76,15.0297]
[1721974490827,5.6237,177.82,177.76,15.0297]
[1721974500550,11.50601642,177.83,177.76,15.0297]
[1721974500746,5.88271642,177.83,177.76,15.0297]
[1721974501131,1.40602826,177.82,177.76,15.0297]
[1721974501338,7.02972826,177.82,177.76,15.0297]
[1721974501851,5.6237,177.82,177.76,15.0297]
[1721974502453,1.40615928,177.82,177.76,15.0297]
[1721974502646,5.6247,177.79,177.76,15.0297]
[1721974502846,1.40639075,177.78,177.76,15.0297]
[1721974503152,1.40639075,177.81,177.76,15.0297]
[1721974503344,21.40639075,177.81,177.76,15.0297]
[1721974503652,5.6246,177.79,177.76,15.0297]
[1721974504149,7.03139077,177.78,177.76,15.0297]
[1721974504350,5.6252,177.77,177.76,15.0297]
[1721974504648,5.6252,177.77,177.73,6.4645]
[1721974504864,1.40657918,177.76,177.73,6.4645]
[1721974505053,7.03217918,177.76,177.72,15.5374]
[1721974505248,7.03245647,177.75,177.72,15.5374]
[1721974505461,5.6258,177.75,177.72,15.5374]
[1721974507544,5.6255,177.76,177.72,15.5374]
[1721974507953,1.40674296,177.75,177.72,15.5374]
[1721974508863,7.03254296,177.75,177.72,15.5374]
[1721974509058,5.6258,177.75,177.72,15.5374]
[1721974509475,5.6258,177.75,177.72,15.34568396]
[1721974509765,5.6258,177.75,177.69,6.0345]
[1721974510766,1.40676653,177.79,177.69,6.0345]
[1721974510982,5.6249,177.78,177.69,6.0345]
[1721974511257,5.6246,177.79,177.69,6.0345]
[1721974511661,7.03086932,177.8,177.69,6.0345]
[1721974512372,5.88367003,177.81,177.69,6.0345]
[1721974512574,5.88367003,177.81,177.71,16.1518]
[1721974512575,20.0,177.8,177.71,16.1518]
[1721974512871,7.29006604,177.81,177.71,16.1518]
[1721974512872,12.91396604,177.81,177.71,16.1518]
[1721974513078,5.6243,177.8,177.71,16.1518]
[1721974513657,5.6246,177.79,177.71,16.1518]
[1721974514650,5.6243,177.8,177.71,16.1518]
[1721974515097,5.6247,177.79,177.71,16.1518]
[1721974515244,5.88367003,177.81,177.71,16.1518]
[1721974515645,1.40650652,177.8,177.71,16.1518]
[1721974515845,5.6249,177.78,177.71,16.1518]
[1721974518157,1.40650643,177.79,177.71,16.1518]
[1721974518553,14.0628,177.78,177.71,16.1518]
[1721974518755,5.6265,177.73,177.67,15.0532]
[1721974518954,1.40696594,177.72,177.67,15.0532]
[1721974519184,7.03376594,177.72,177.67,15.0532]
[1721974519480,1.40696803,177.71,177.67,15.0532]
[1721974520201,7.03438945,177.7,177.65,15.3493]
[1721974520794,5.6278,177.69,177.65,15.3493]
[1721974520995,1.4072815,177.68,177.65,15.3493]
[1721974521303,1.40728111,177.67,177.65,15.3493]
[1721974522185,1.40728024,177.68,177.65,15.3493]
[1721974522488,1.40727964,177.67,177.65,15.3493]
[1721974523398,1.40727972,177.68,177.65,15.3493]
[1721974523585,1.40727951,177.67,177.65,15.3493]
[1721974523808,1.40727951,177.67,177.57,21.7861]
[1721974523997,7.03567951,177.67,177.57,21.7861]
[1721974524300,1.40727951,177.67,177.57,21.7861]
[1721974524489,1.40753262,177.71,177.57,21.7861]
[1721974524686,1.40749967,177.7,177.57,21.7861]
[1721974525098,5.6287,177.66,177.57,21.7861]
[1721974525288,1.40749084,177.65,177.57,21.7861]
[1721974525488,1.40758809,177.64,177.57,21.7861]
[1721974525699,5.6297,177.63,177.57,21.7861]
[1721974526005,1.40770149,177.62,177.57,21.7861]
[1721974526382,5.6293,177.65,177.57,21.7861]
[1721974526596,20.0,177.64,177.57,21.7861]
[1721974527483,25.6293,177.64,177.57,21.7861]
[1721974527684,20.0,177.64,177.57,21.7861]
[1721974527990,20.0,177.65,177.57,21.7861]
[1721974528204,25.6292,177.65,177.57,21.7861]
[1721974528708,5.6294,177.64,177.57,21.7861]
[1721974530796,5.6296,177.63,177.57,21.7861]
[1721974531811,5.6301,177.62,177.57,21.7861]
[1721974532187,1.40765787,177.61,177.57,15.5343]
[1721974532382,1.40788153,177.6,177.53,15.3372]
[1721974532585,21.40791034,177.63,177.53,15.3372]
[1721974532789,45.0,177.62,177.53,15.3372]
[1721974533024,1.40802389,177.61,177.53,15.3372]
[1721974533236,1.40802386,177.6,177.53,15.3372]
[1721974533395,5.6312,177.58,177.53,15.3372]
[1721974533790,5.6309,177.59,177.53,15.3372]
[1721974533999,20.0,177.61,177.53,15.3372]
[1721974534390,20.0,177.64,177.53,15.3372]
[1721974534589,7.46249552,177.67,177.53,15.3372]
[1721974534804,7.46249552,177.67,177.54,45.0]
[1721974535216,7.46249552,177.67,177.53,15.3372]
[1721974535512,5.63,177.62,177.53,15.3372]
[1721974535933,15.48034071,177.66,177.53,15.3372]
[1721974536098,5.6303,177.61,177.53,15.3372]
[1721974536501,5.63,177.62,177.53,15.3372]
[1721974537916,5.6303,177.61,177.53,15.3372]
[1721974538712,5.63,177.62,177.53,15.3372]
[1721974539194,20.0,177.65,177.53,15.3372]
[1721974539520,1.40771143,177.64,177.53,15.3372]
[1721974539813,46.40771143,177.64,177.53,15.3372]
[1721974540020,25.6299,177.63,177.53,16.46347875]
[1721974540396,5.6301,177.62,177.53,16.46347875]
[1721974540596,1.40769791,177.64,177.53,15.3372]
[1721974540801,46.40769791,177.64,177.53,15.3372]
[1721974540996,20.0,177.63,177.53,15.3372]
[1721974541397,5.6306,177.6,177.53,15.3372]
[1721974544525,5.6303,177.61,177.53,15.3372]
[1721974545329,7.03856627,177.6,177.53,15.3372]
[1721974545907,5.6311,177.59,177.53,15.3372]
[1721974546107,5.6313,177.58,177.53,15.3372]
[1721974546606,5.6306,177.6,177.53,15.3372]
[1721974549501,1.40793787,177.62,177.53,15.3372]
[1721974549724,5.6304,177.61,177.53,15.3372]
[1721974550430,25.6297,177.63,177.54,1.1261976]
[1721974551232,5.6301,177.62,177.53,15.3372]
[1721974551438,5.6301,177.62,177.53,16.46336589]
[1721974551609,25.6296,177.63,177.53,16.46336589]
[1721974551808,25.6296,177.63,177.54,45.0]
[1721974552822,7.27407611,177.67,177.54,45.0]
[1721974553131,1.40752318,177.69,177.55,17.57771855]
[1721974553331,1.40752318,177.69,177.56,45.0]
[1721974553806,5.6286,177.67,177.57,6.3634]
[1721974554010,1.40741305,177.7,177.58,16.4517]
[1721974554228,5.6284,177.67,177.58,16.4517]
[1721974554631,5.6281,177.68,177.59,45.0]
[1721974554815,5.6278,177.69,177.6,16.4517]
[1721974555612,5.6278,177.69,177.6,17.57745429]
[1721974555824,5.6281,177.68,177.61,1.12575718]
[1721974556011,5.6281,177.68,177.6,16.4517]
[1721974556829,5.6281,177.68,177.61,1.1257578]
[1721974557208,5.629,177.65,177.6,16.4517]
[1721974557416,14.0682,177.71,177.6,16.4517]
[1721974557615,20.0,177.7,177.6,16.4517]
[1721974557914,1.40731188,177.69,177.6,16.4517]
[1721974558115,5.6291,177.65,177.6,16.4517]
[1721974558333,5.6287,177.66,177.6,16.4517]
[1721974559315,5.6292,177.65,177.6,16.4517]
[1721974560127,5.6294,177.64,177.6,16.4517]
[1721974560321,14.0706,177.68,177.6,16.4517]
[1721974560511,5.629,177.65,177.6,16.4517]
[1721974560714,15.47824634,177.68,177.6,16.4517]
[1721974560715,1.40755661,177.66,177.6,16.4517]
[1721974561023,5.6294,177.64,177.6,16.4517]
[1721974562735,5.629,177.65,177.6,16.4517]
[1721974563940,5.6293,177.64,177.6,16.4517]
[1721974564451,5.6291,177.65,177.6,16.4517]
[1721974565548,1.4075634,177.67,177.6,16.4517]
[1721974565714,5.6284,177.67,177.6,16.4517]
[1721974566342,21.4075634,177.7,177.6,16.4517]
[1721974566525,45.0,177.69,177.6,16.4517]
[1721974566722,20.0,177.68,177.6,16.4517]
[1721974566922,5.6274,177.71,177.6,16.4517]
[1721974567122,1.40717971,177.7,177.6,16.4517]
[1721974567735,5.6278,177.69,177.6,16.4517]
[1721974568131,1.40717971,177.7,177.6,16.4517]
[1721974568448,1.40724101,177.69,177.6,16.4517]
[1721974569319,5.6287,177.66,177.6,16.4517]
[1721974569840,5.6283,177.68,177.6,16.4517]
[1721974571125,20.0,177.69,177.6,16.4517]
[1721974571323,27.03530398,177.69,177.6,16.4517]
[1721974571828,21.40730398,177.69,177.6,16.4517]
[1721974572028,1.40730398,177.69,177.6,16.4517]
[1721974572755,21.40730398,177.69,177.6,16.4517]
[1721974573062,5.6281,177.68,177.6,16.4517]
[1721974575441,5.6287,177.67,177.6,16.4517]
[1721974575622,1.40755793,177.66,177.6,16.4517]
[1721974575827,7.03655793,177.66,177.6,16.4517]
[1721974576242,20.0,177.65,177.6,16.4517]
[1721974576459,1.40772204,177.64,177.56,15.3976]
[1721974576753,5.6302,177.62,177.56,15.3976]
[1721974576926,1.40796722,177.61,177.56,15.3976]
[1721974577124,1.4079667,177.63,177.56,15.3976]
[1721974577535,27.03733871,177.64,177.56,15.3976]
[1721974577826,5.6297,177.63,177.56,15.3976]
[1721974578029,20.0,177.62,177.56,15.3976]
[1721974580528,5.6303,177.61,177.56,15.3976]
[1721974581829,1.40788277,177.6,177.53,6.6115]
[1721974582036,1.40788277,177.6,177.52,15.3459]
[1721974582248,21.40788277,177.6,177.52,15.3459]
[1721974582553,45.0,177.59,177.52,15.3459]
[1721974582751,21.40833133,177.58,177.52,15.3459]
[1721974582936,46.40833133,177.57,177.52,15.3459]
[1721974583138,5.6326,177.54,177.52,15.3459]
[1721974583946,5.6326,177.54,177.49,6.5483]
[1721974584142,5.6325,177.54,177.49,6.5483]
[1721974584347,1.40841255,177.53,177.48,16.6249]
[1721974584638,5.6335,177.51,177.48,16.6249]
[1721974584837,5.6332,177.52,177.48,16.6249]
[1721974585156,21.40863636,177.51,177.48,16.6249]
[1721974585353,20.0,177.51,177.48,16.6249]
[1721974586851,7.04183609,177.52,177.48,16.6249]
[1721974587461,5.6332,177.52,177.48,16.6249]
[1721974587758,7.04183571,177.52,177.48,16.6249]
[1721974588547,5.6332,177.52,177.48,16.6249]
[1721974588752,5.6328,177.53,177.48,16.6249]
[1721974589156,20.0,177.52,177.48,16.6249]
[1721974589366,5.6328,177.53,177.48,16.6249]
[1721974590855,46.40849662,177.57,177.48,16.6249]
[1721974591060,5.6327,177.54,177.48,16.6249]
[1721974592954,5.6329,177.53,177.48,16.6249]
[1721974593730,5.6324,177.55,177.48,16.6249]
[1721974593950,1.40836144,177.57,177.48,16.6249]
[1721974594153,5.6319,177.56,177.48,16.6249]
[1721974595062,5.6323,177.55,177.48,16.6249]
[1721974596250,7.03996144,177.57,177.48,16.6249]
[1721974596637,5.6316,177.57,177.48,16.6249]
[1721974597557,5.6321,177.56,177.48,16.6249]
[1721974597735,15.48561486,177.59,177.48,16.6249]
[1721974597940,5.6328,177.54,177.48,16.6249]
[1721974598152,7.04119511,177.53,177.48,16.6249]
[1721974598354,5.6328,177.53,177.48,16.6249]
[1721974599531,1.40836698,177.52,177.48,16.6249]
[1721974599737,7.04156698,177.52,177.48,16.6249]
[1721974600045,5.6332,177.52,177.48,16.6249]
[1721974600445,5.6328,177.53,177.48,16.6249]
[1721974601069,1.40848772,177.52,177.48,16.6249]
[1721974601360,5.6335,177.51,177.48,16.6249]
[1721974602052,7.04161033,177.53,177.48,16.6249]
[1721974602850,1.40861276,177.59,177.48,16.6249]
[1721974603053,5.6321,177.56,177.48,16.6249]
[1721974603959,5.6324,177.55,177.48,16.6249]
[1721974604261,5.6331,177.53,177.48,16.6249]
[1721974605557,7.04170261,177.52,177.48,16.6249]
[1721974605856,5.6332,177.52,177.48,16.6249]
[1721974608159,1.40864747,177.51,177.45,6.5124]
[1721974608363,7.04214747,177.51,177.45,6.5124]
[1721974608662,1.40874303,177.5,177.45,6.5124]
[1721974609240,5.6341,177.49,177.44,16.4183]
[1721974609442,1.40889853,177.48,177.44,16.4183]
[1721974612058,5.6337,177.51,177.44,16.4183]
[1721974612255,20.0,177.5,177.44,16.4183]
[1721974612843,21.40881538,177.5,177.44,16.4183]
[1721974613044,20.0,177.5,177.44,16.4183]
[1721974616943,5.6331,177.53,177.45,1.1269804]
[1721974617149,5.6331,177.53,177.46,1.12686019]
[1721974617550,5.6331,177.53,177.44,16.4183]
[1721974618850,12.36,177.5,177.44,28.7783]
[1721974619449,12.36,177.49,177.44,16.4183]
[1721974619657,12.36,177.48,177.44,16.4183]
[1721974620173,5.6332,177.52,177.44,16.4183]
[1721974620353,5.6328,177.53,177.44,16.4183]
[1721974622049,5.6324,177.55,177.44,17.54509497]
[1721974622257,5.883632,177.57,177.47,16.6228]
[1721974622462,5.6315,177.58,177.47,16.6228]
[1721974623166,380.5,177.65,177.5,15.7066]
[1721974623367,5.63,177.62,177.51,60.7066]
[1721974624262,5.88243301,177.66,177.52,20.6646155]
[1721974624476,5.88243301,177.66,177.54,16.1926]
[1721974624670,5.88243301,177.66,177.57,16.2143]
[1721974624847,5.6278,177.69,177.58,46.12586087]
[1721974625258,5.6278,177.69,177.58,45.0]
[1721974626074,5.6281,177.68,177.58,45.0]
[1721974626867,5.6278,177.69,177.58,45.0]
[1721974627068,5.6278,177.69,177.6,6.1472]
[1721974628076,1.4072718,177.7,177.6,6.1472]
[1721974628286,21.4072718,177.7,177.6,6.1472]
[1721974628494,5.6285,177.67,177.6,6.1472]
[1721974629180,7.0359729,177.66,177.6,6.1472]
[1721974629353,5.6287,177.66,177.6,6.1472]
[1721974630576,26.12747697,177.65,177.6,6.1472]
[1721974630880,30.3492,177.65,177.6,6.1472]
[1721974631173,24.72,177.66,177.6,6.1472]
[1721974631379,5.629,177.65,177.6,6.1472]
[1721974631597,26.12758138,177.66,177.6,6.1472]
[1721974631758,26.12758138,177.66,177.59,15.6917]
[1721974631759,1.40758138,177.64,177.59,15.6917]
[1721974631966,24.72,177.66,177.59,15.6917]
[1721974632272,5.6286,177.67,177.59,15.6917]
[1721974632465,24.72,177.68,177.59,15.6917]
[1721974632669,5.6287,177.66,177.59,15.6917]
[1721974633673,26.12748012,177.65,177.59,15.6917]
[1721974633882,1.40758586,177.64,177.59,15.6917]
[1721974634878,26.12766973,177.65,177.59,15.6917]
[1721974635077,5.629,177.66,177.59,15.6917]
[1721974635602,7.03666883,177.65,177.59,15.6917]
[1721974635887,5.6291,177.65,177.59,15.6917]
[1721974636090,30.3487,177.67,177.59,15.6917]
[1721974636289,27.03633121,177.66,177.59,15.6917]
[1721974637291,5.6291,177.65,177.59,15.6917]
[1721974638285,7.03683526,177.64,177.59,15.6917]
[1721974638501,5.6297,177.63,177.59,15.6917]
[1721974638666,7.0377017,177.62,177.59,15.6917]
[1721974638870,1.40774822,177.61,177.59,15.6917]
[1721974639282,5.63,177.62,177.59,15.6917]
[1721974639483,5.6297,177.63,177.59,15.6917]
[1721974639883,24.72,177.64,177.59,15.6917]
[1721974640071,5.629,177.65,177.59,15.6917]
[1721974640271,20.0,177.64,177.59,15.6917]
[1721974640673,21.40758211,177.64,177.59,15.6917]
[1721974640973,5.6303,177.61,177.59,15.6917]
[1721974641373,26.12758211,177.64,177.59,15.6917]
[1721974641570,25.6297,177.63,177.59,15.6917]
[1721974641770,20.0,177.63,177.59,15.6917]
[1721974642183,30.3493,177.64,177.59,15.6917]
[1721974642672,5.6297,177.63,177.59,15.6917]
[1721974643490,24.72,177.64,177.59,15.6917]
[1721974643790,5.6289,177.66,177.59,15.6917]
[1721974643975,25.6291,177.65,177.59,15.6917]
[1721974644170,5.6294,177.64,177.59,15.6917]
[1721974644371,5.63,177.62,177.59,15.6917]
[1721974645995,5.6306,177.6,177.59,15.6917]
[1721974646179,7.03804753,177.61,177.59,15.6917]
[1721974646792,1.40779494,177.6,177.59,15.6917]
[1721974646994,7.03839494,177.6,177.59,15.6917]
[1721974647178,5.6306,177.6,177.59,15.6917]
[1721974647372,5.631,177.59,177.56,6.4248]
[1721974647682,1.40780675,177.63,177.56,6.4248]
[1721974647683,5.6306,177.6,177.56,6.4248]
[1721974648687,5.6303,177.61,177.56,6.4248]
[1721974648875,7.03822802,177.61,177.56,6.4248]
[1721974649075,5.6303,177.61,177.56,6.4248]
[1721974650092,5.6297,177.63,177.56,6.4248]
[1721974650294,12.35,177.58,177.56,6.4248]
[1721974651677,12.35,177.57,177.56,6.4248]
[1721974651877,12.35,177.57,177.54,15.6879]
[1721974652085,12.35,177.56,177.54,15.6879]
[1721974653689,12.35,177.57,177.54,15.6879]
[1721974653884,12.35,177.58,177.54,15.6879]
[1721974654202,1.40780678,177.61,177.54,15.6879]
[1721974654203,12.35,177.6,177.54,28.0379]
[1721974654588,5.6291,177.65,177.55,12.35]
[1721974654793,1.40767494,177.68,177.56,12.35]
[1721974654794,12.35,177.62,177.56,12.35]
[1721974656195,5.6293,177.64,177.54,16.81394409]
[1721974656508,5.6293,177.64,177.55,45.0]
[1721974656802,5.629,177.65,177.55,45.0]
[1721974656979,5.629,177.65,177.55,46.12604519]
[1721974657791,5.629,177.65,177.55,45.0]
[1721974658106,5.629,177.65,177.54,15.6879]
[1721974658107,5.6299,177.63,177.54,15.6879]
[1721974658309,5.6301,177.62,177.54,15.6879]
[1721974658889,5.6296,177.64,177.54,15.6879]
[1721974659096,5.6288,177.66,177.55,1.12610927]
[1721974659399,5.6288,177.66,177.55,46.12610927]
[1721974660490,5.6291,177.65,177.56,15.9508]
[1721974661187,5.6287,177.66,177.57,6.3322]
[1721974661392,30.3184,177.67,177.58,1.12589168]
[1721974661716,5.6284,177.67,177.58,1.12589168]
[1721974662286,5.6284,177.67,177.59,16.562]
[1721974663216,5.6284,177.67,177.6,1.12588937]
[1721974663523,5.6284,177.67,177.61,1.12590445]
[1721974663691,5.6284,177.67,177.59,16.562]
[1721974663891,5.6288,177.66,177.59,16.562]
[1721974664091,1.40738853,177.65,177.59,16.562]
[1721974664293,1.40754,177.64,177.59,16.562]
[1721974664509,26.09754,177.64,177.59,16.562]
[1721974664813,5.6305,177.61,177.5,21.9309]
[1721974665791,5.6305,177.61,177.51,45.0]
[1721974666516,27.03773906,177.63,177.51,45.0]
[1721974666707,5.6301,177.62,177.51,45.0]
[1721974666902,5.6303,177.61,177.51,45.0]
[1721974667102,1.40784074,177.6,177.51,45.0]
[1721974667503,5.6303,177.61,177.51,45.0]
[1721974667898,1.40788107,177.6,177.5,21.9309]
[1721974668104,5.6312,177.59,177.5,21.9309]
[1721974668317,5.6306,177.6,177.5,21.9309]
[1721974668615,7.038078,177.62,177.51,45.0]
[1721974668923,20.0,177.61,177.51,45.0]
[1721974669110,5.6302,177.62,177.51,45.0]